Cogmind - Beta 10.2 --- EXPLORER MODE // 2022.01.19 @ 11:21:57 Player: xerxia Result: Escaped! Performance ------------- Evolutions (9) 4500 Regions Visited (18) 3600 Robots Destroyed (24) 120 Value Destroyed (1095) 1095 Prototype IDs (22) 440 Alien Tech Used (7) 1400 Bonus (12715) 12715 TOTAL SCORE: 23870 Bonus ------- Follower Combat Kills 354 Met Zhirov 300 Scanned by Researcher 1000 Pursued by Intercept 500 Acquired SGEMP 2000 Delivered SGEMP 2000 Win 3000 Win Speed 3561 Cogmind --------- Core Integrity 1511/1600 Matter 353/425 Energy 348/350 System Corruption 0% Temperature Cool (0) Movement Core (50) Location To Epsilon Eridani Parts ------- > --- POWER (3) -------- (None) > --- PROPULSION (10) -- Myomer Leg Biometal Leg Centrium Leg Centrium Leg Centrium Leg High-density Centrium Leg > --- UTILITY (10) ----- (None) > --- WEAPON (3) ------- (None) > --- INVENTORY (4) ---- Light Particle Reactor Quantum Reactor Advanced Heat Sink Enhanced Quantum Rifle Peak State ------------ > --- POWER ------------ Neutrino Core Compact Particle Reactor Light Quantum Reactor > --- PROPULSION ------- Cooled Nuclear Pulse Thruster Cooled Nuclear Pulse Thruster Impulse Thruster Field Propulsion Array Field Propulsion Array Q-thruster Impulse Thruster Array > --- UTILITY ---------- Advanced Power Amplifier Experimental Heat Sink Advanced Cooling System Improved Coolant Injector Large Storage Unit Advanced Weight Redist. System Improved Utility Shielding Advanced Powered Armor > --- WEAPON ----------- Heavy Disruptor Cannon Null Cannon > --- INVENTORY -------- Light Quantum Reactor Impulse Thruster Field Propulsion Array Electron Diverter Advanced Cloaking Device Neutron Missile Launcher Phasing Sabre SGEMP Prototype [Rating: 173] Favorites ----------- Power Neutrino Core Engine Ion Engine Power Core Neutrino Core Reactor Heavy Antimatter Reactor Propulsion Flight Unit Treads Light Treads Leg Aluminum Leg Hover Unit Improved Gravmag System Flight Unit Flight Unit Utility Experimental Sensor Array Device Experimental Sensor Array Storage High-capacity Storage Unit Protection Improved Propulsion Shielding Artifact Matter Drive Weapon Light EM Pulse Cannon Energy Gun Medium Laser Energy Cannon Light EM Pulse Cannon Ballistic Gun Assault Rifle Ballistic Cannon Linear Accelerator Launcher Gamma Bomb Array Special Weapon Mining Laser Slashing Weapon Phasing Sabre Build | -11 -10 -9 -9 -8 -7 -6 -5 -5 -5 -5 -4 -4 -4 -3 -2 -2 -2 -1 ------- Run | Scr Mat Mat Min Mat Fac Fac Fac Upp Upp Zhi Pro Fac Arm Res Res Tes Sec Acc Slots Evolved 19 | . 1 2 . 2 2 2 2 . . . . 2 . 2 2 . . 2 Power 2 | . 1 . . . . . 1 . . . . . . . . . . . Propulsion 8 | . . 2 . 2 1 1 . . . . . 1 . 1 . . . . Utility 8 | . . . . . 1 1 1 . . . . 1 . 1 1 . . 2 Weapon 1 | . . . . . . . . . . . . . . . 1 . . . Parts Attached 117 | 6 3 1 4 9 7 5 8 4 2 10 . 3 5 10 4 8 17 11 Power 19 | 1 1 . 1 1 2 1 3 2 . 1 . . . 2 1 1 1 1 Engine 7 | 1 1 . 1 1 1 1 1 . . . . . . . . . . . Core 8 | . . . . . 1 . 2 2 . . . . . 2 . . 1 . Reactor 4 | . . . . . . . . . . 1 . . . . 1 1 . 1 Propulsion 36 | 2 . . 2 5 2 2 1 1 . 3 . 1 1 3 . 3 4 6 Treads 1 | . . . 1 . . . . . . . . . . . . . . . Leg 8 | 2 . . . . . . . . . . . . . . . . . 6 Wheel . | . . . . . . . . . . . . . . . . . . . Hover 1 | . . . . . . 1 . . . . . . . . . . . . Flight 26 | . . . 1 5 2 1 1 1 . 3 . 1 1 3 . 3 4 . Utility 37 | 1 2 . 1 2 1 1 4 1 . 6 . 2 3 4 1 . 6 2 Device 22 | . . . 1 2 . 1 4 1 . 5 . 1 2 2 1 . 1 1 Storage 4 | 1 2 . . . . . . . . . . . . 1 . . . . Processor . | . . . . . . . . . . . . . . . . . . . Hackware . | . . . . . . . . . . . . . . . . . . . Protection 10 | . . . . . 1 . . . . 1 . 1 1 1 . . 4 1 Artifact 1 | . . . . . . . . . . . . . . . . . 1 . Weapon 25 | 2 . 1 . 1 2 1 . . 2 . . . 1 1 2 4 6 2 Energy Gun 2 | 1 . . . . 1 . . . . . . . . . . . . . Energy Cannon 10 | . . 1 . . 1 . . . . . . . . 1 2 3 2 . Ballistic Gun 2 | 1 . . . . . . . . 1 . . . . . . . . . Ballistic Cannon 1 | . . . . . . . . . . . . . . . . . . 1 Launcher 3 | . . . . . . . . . . . . . 1 . . . 1 1 Special Weapon 1 | . . . . 1 . . . . . . . . . . . . . . Impact Weapon . | . . . . . . . . . . . . . . . . . . . Slashing Weapon 6 | . . . . . . 1 . . 1 . . . . . . 1 3 . Piercing Weapon . | . . . . . . . . . . . . . . . . . . . Special Melee Weapon . | . . . . . . . . . . . . . . . . . . . Unidentified Prototypes 18 | . . . 1 . 1 . . . . 7 . . . . . 2 6 1 Parts Lost 26 | . . 1 . . . . . . . . . . 1 . . 2 21 1 Power 2 | . . . . . . . . . . . . . . . . . 2 . Propulsion 12 | . . . . . . . . . . . . . . . . 2 10 . Utility 9 | . . . . . . . . . . . . . 1 . . . 7 1 Weapon 3 | . . 1 . . . . . . . . . . . . . . 2 . Highest Loss Streak 9 | . . 1 . . . . . . . . . . 1 . . 1 9 1 Average Slot Usage (%) 84 | . 90 78 95 98 97 95 98 94 94 92 94 95 95 86 83 79 59 33 Engine 8 | . 19 20 20 16 7 6 3 . . . . . . . . . . . Core 4 | . . . . . 6 6 12 16 16 12 11 10 10 9 8 4 2 . Reactor 1 | . . . . . . . . . . 3 5 5 5 4 4 7 5 1 Treads 2 | . . . 9 . . . . . . . . . . . . . . . Leg 9 | . 25 20 20 . . . . . . . . . . . . . . 21 Flight 20 | . . . 5 50 48 43 43 38 38 37 38 40 40 32 29 25 20 . Device 12 | . . . 8 15 14 14 22 22 22 21 22 22 20 19 20 20 15 4 Storage 6 | . 20 20 12 1 . . . . . . . . . 2 4 4 3 . Protection 3 | . . . . . 7 6 5 5 5 5 5 7 10 8 8 8 3 1 Energy Gun 1 | . 12 5 . . . . . . . . . . . . . . . . Energy Cannon 4 | . . 2 10 8 6 6 5 5 2 . . . . 1 8 7 3 . Ballistic Gun 4 | . 12 10 10 . . . . . 2 5 5 5 . . . . . . Slashing Weapon 1 | . . . . . . 3 5 5 5 5 5 5 5 4 . . 2 . Naked Turns . | . . . . . . . . . . . . . . . . . . . Heaviest Build 112 | 17 50 52 52 12 21 28 44 52 54 63 61 65 72 101 112 109 109 44 Greatest Support 175 | 20 20 20 20 30 28 35 59 64 64 71 71 79 79 104 113 123 121 175 Greatest Overweight (x) 4 | 3 2 2 2 . . . 1 4 . . . . . 1 . . 3 . Average Overweight (x) . | . . 2 2 . . . . . . . . . . . . . . . Largest Inventory Capacity 12 | 8 12 12 12 12 4 4 4 4 4 4 4 4 4 10 10 10 10 4 Average Capacity 7 | 7 8 12 12 5 4 4 4 4 4 4 4 4 4 8 10 10 8 4 Most Carried 12 | 3 8 10 12 11 4 4 4 4 4 4 4 4 4 10 10 10 10 4 Average Carried 6 | 1 6 8 11 4 3 3 3 4 4 3 4 3 3 7 9 8 7 2 Final Capacity 12 | 8 12 12 12 4 4 4 4 4 4 4 4 4 4 10 10 10 4 4 Final Carried 12 | 2 8 10 12 4 3 4 4 4 4 4 4 4 4 10 10 8 3 4 Class Distribution -------------------- 49% | Hacker-Mutant 33% | Generator-Sprinter 8% | Generator-Mutant 5% | Hacker-Sprinter Dominant Class ---------------- Hacker-Mutant | -10/Materials Hacker-Mutant | -9/Materials Hacker-Mutant | -9/Mines Scavenger-Sprinter | -8/Materials Hacker-Mutant | -7/Factory Hacker-Sprinter | -6/Factory Generator-Sprinter | -5/Factory Generator-Sprinter | -5/Upper Caves Generator-Sprinter | -5/Upper Caves Generator-Sprinter | -5/Zhirov Generator-Sprinter | -4/Proximity Caves Generator-Sprinter | -4/Factory Generator-Mutant | -4/Armory Generator-Sprinter | -3/Research Generator-Sprinter | -2/Research Generator-Sprinter | -2/Testing Generator-Sprinter | -2/Section 7 Hacker-Mutant | -1/Access Resources | -11 -10 -9 -9 -8 -7 -6 -5 -5 -5 -5 -4 -4 -4 -3 -2 -2 -2 -1 ----------- Run | Scr Mat Mat Min Mat Fac Fac Fac Upp Upp Zhi Pro Fac Arm Res Res Tes Sec Acc Matter Collected 1802 | 221 299 12 90 . 102 100 . 128 . . 116 . 66 61 104 20 167 316 Remotely . | . . . . . . . . . . . . . . . . . . . Salvage Created 1301 | . 203 330 200 . . 138 . . . . . . . . . 77 284 69 Parts 56 | . 12 17 7 . . 6 . . . . . . . . . 3 7 4 Haulers Intercepted 1 | . . 1 . . . . . . . . . . . . . . . . Recyclers Shooed 2 | . . 2 . . . . . . . . . . . . . . . . Parts Field Recycled . | . . . . . . . . . . . . . . . . . . . Retrieved Matter . | . . . . . . . . . . . . . . . . . . . Parts Self-Destructed . | . . . . . . . . . . . . . . . . . . . Prevented . | . . . . . . . . . . . . . . . . . . . Kills | -11 -10 -9 -9 -8 -7 -6 -5 -5 -5 -5 -4 -4 -4 -3 -2 -2 -2 -1 ------- Run | Scr Mat Mat Min Mat Fac Fac Fac Upp Upp Zhi Pro Fac Arm Res Res Tes Sec Acc Combat Hostiles Destroyed 18 | . 6 4 2 . . 2 . . . . . . . . . . 3 1 Guns 9 | . 6 3 . . . . . . . . . . . . . . . . Cannons 6 | . . 1 2 . . . . . . . . . . . . . 2 1 AOE 2 | . . . . . . 1 . . . . . . . . . . 1 . Classes Destroyed 8 | . 2 2 . . . 1 . . . . . . . . . 1 1 1 Hauler 1 | . . 1 . . . . . . . . . . . . . . . . Recycler 2 | . . 2 . . . . . . . . . . . . . . . . Swarmer 4 | . 2 . 2 . . . . . . . . . . . . . . . Grunt 10 | . 4 4 . . . 1 . . . . . . . . . . 1 . Brawler 1 | . . . . . . . . . . . . . . . . . 1 . Researcher 3 | . . . . . . . . . . . . . . . . 1 2 . Sentry 1 | . . . . . . 1 . . . . . . . . . . . . Programmer 1 | . . . . . . . . . . . . . . . . . . 1 Tracker 1 | . . . . . . . . . . . . . . . . . 1 . Best Kill Streak 6 | . 2 6 2 . . 1 . . . . . . . . . 1 2 1 Combat Bots Only 3 | . 2 3 2 . . 1 . . . . . . . . . . 2 1 Max Kills in Single Turn 3 | . 1 3 1 . . 1 . . . . . . . . . 1 1 1 Gunslinging . | . . . . . . . . . . . . . . . . . . . Exploded 1 | . . . . . . 1 . . . . . . . . . . 1 . Melee . | . . . . . . . . . . . . . . . . . . . Uniques/NPCs Destroyed . | . . . . . . . . . . . . . . . . . . . Combat | -11 -10 -9 -9 -8 -7 -6 -5 -5 -5 -5 -4 -4 -4 -3 -2 -2 -2 -1 -------- Run | Scr Mat Mat Min Mat Fac Fac Fac Upp Upp Zhi Pro Fac Arm Res Res Tes Sec Acc Damage Taken 7297 | . 88 149 35 76 13 100 37 236 18 . 40 18 660 212 120 1026 3432 1037 Core 1704 | . . 80 10 18 6 19 13 94 . . . . 55 . . 154 1166 89 Absorbed by Shields . | . . . . . . . . . . . . . . . . . . . Core Remaining (%) 85 | 100 100 . 77 96 99 97 . . . . 83 . 95 100 . . 2 94 Volleys Fired 54 | . 10 11 7 . . 8 . 1 . . . . 1 . . 2 9 5 Largest 2 | . 2 2 2 . . 1 . 1 . . . . 1 . . 2 2 1 Hottest 240 | . 70 76 76 . . 56 . 56 . . . . 80 . . 198 240 66 Shots Fired 84 | . 20 18 14 . . 8 . 1 . . . . 1 . . 4 13 5 Gun 42 | . 20 15 7 . . . . . . . . . . . . . . . Cannon 36 | . . 3 7 . . 8 . 1 . . . . . . . 4 11 2 Launcher 6 | . . . . . . . . . . . . . 1 . . . 2 3 Special . | . . . . . . . . . . . . . . . . . . . Kinetic 30 | . 10 11 7 . . . . . . . . . . . . . . 2 Thermal 21 | . 10 4 . . . . . . . . . . . . . . 7 . Explosive 5 | . . . . . . . . . . . . . . . . . 2 3 Electromagnetic 28 | . . 3 7 . . 8 . 1 . . . . 1 . . 4 4 . Robot Hit Streak 23 | . 16 23 14 . . 10 . 11 . . . . 13 . . . 12 17 Robot Miss Streak 5 | . 1 1 1 . . . . . . . . . 1 . . 4 5 . Penetration Max . | . . . . . . . . . . . . . . . . . . . Secondary Targets 2 | . 2 . . . . . . . . . . . . . . . . . Max Gunslinging Chain 1 | . 1 . . . . . . . . . . . . . . . . . Shots Hit Robots 73 | . 17 16 8 . . 8 . 1 . . . . 1 . . 2 15 5 Core Hits 46 | . 11 11 5 . . 2 . . . . . . 1 . . 1 10 5 Critical Hits 2 | . . . . . . . . . . . . . . . . . 2 . Critical Kills 1 | . . . . . . . . . . . . . . . . . 1 . Critical Parts Destroyed 1 | . . . . . . . . . . . . . . . . . 1 . Melee Attacks 15 | . . . . . . . . 2 . . . . 2 . . 3 8 . Impact . | . . . . . . . . . . . . . . . . . . . Slashing 15 | . . . . . . . . 2 . . . . 2 . . 3 8 . Piercing . | . . . . . . . . . . . . . . . . . . . Sneak Attacks . | . . . . . . . . . . . . . . . . . . . Combat Hostiles . | . . . . . . . . . . . . . . . . . . . Follow-up Attacks . | . . . . . . . . . . . . . . . . . . . Damage Inflicted 2704 | . 211 652 177 . . 221 . 20 . . . . 4 . . 153 870 396 Guns 400 | . 211 161 28 . . . . . . . . . . . . . . . Cannons 1127 | . . 72 149 . . 154 . 20 . . . . . . . 33 597 102 Explosions 949 | . . 419 . . . 67 . . . . . . 4 . . . 166 293 Melee 227 | . . . . . . . . . . . . . . . . 120 107 . Ramming 1 | . . . . . . . . . . . . . . . . . . 1 Kinetic 328 | . 86 112 28 . . . . . . . . . . . . . . 102 Thermal 1155 | . 125 468 . . . 67 . . . . . . . . . . 495 . Explosive 459 | . . . . . . . . . . . . . . . . . 166 293 Electromagnetic 534 | . . 72 149 . . 154 . 20 . . . . 4 . . 33 102 . Impact . | . . . . . . . . . . . . . . . . . . . Slashing 227 | . . . . . . . . . . . . . . . . 120 107 . Piercing . | . . . . . . . . . . . . . . . . . . . Highest Corruption 1 | . 1 . . . . 1 . . . . . . . . . . . . Average Corruption 1 | . 1 . . . . 1 . . . . . . . . . . . . Corruption Purged . | . . . . . . . . . . . . . . . . . . . Overload Shots . | . . . . . . . . . . . . . . . . . . . Overflow Damage 122 | . . 122 . . . . . . . . . . . . . . . . Projectiles . | . . . . . . . . . . . . . . . . . . . Explosions 122 | . . 122 . . . . . . . . . . . . . . . . Melee . | . . . . . . . . . . . . . . . . . . . Knockbacks 1 | . . . . . . . . . . . . . . . . . . 1 Impact . | . . . . . . . . . . . . . . . . . . . Kinetic 1 | . . . . . . . . . . . . . . . . . . 1 Secondary . | . . . . . . . . . . . . . . . . . . . Self-Inflicted Damage 140 | . . 74 . . . . . . . . . . 3 . . . 63 . Shots 3 | . . 1 . . . . . . . . . . 1 . . . 1 . Rammed 1 | . . . . . . . . . . . . . . . . . . 1 Targets Rammed 1 | . . . . . . . . . . . . . . . . . . 1 Kicked . | . . . . . . . . . . . . . . . . . . . Crushed . | . . . . . . . . . . . . . . . . . . . Highest Temperature 207 | . 207 81 84 45 10 156 199 . . . 7 124 114 . . . 10 . Average Temperature 59 | . 80 31 40 21 2 55 89 . . . 4 58 43 . . . 5 . Received Heat Transfer 780 | . 75 66 . 45 12 51 27 39 . . 9 . 87 18 18 . 216 117 Effects 1 | . 1 . . . . . . . . . . . . . . . . . Interference 1 | . 1 . . . . . . . . . . . . . . . . . Siege Activations . | . . . . . . . . . . . . . . . . . . . Robots Corrupted 1 | . . . . . . 1 . . . . . . . . . . . . Combat Hostiles 1 | . . . . . . 1 . . . . . . . . . . . . Parts Fried . | . . . . . . . . . . . . . . . . . . . Impact Corruptions . | . . . . . . . . . . . . . . . . . . . Robots Melted . | . . . . . . . . . . . . . . . . . . . Combat Hostiles . | . . . . . . . . . . . . . . . . . . . Parts Melted 5 | . 2 . . . . . . . . . . . . . . . . 3 Heat Transferred 1118 | . 370 398 . . . 50 . . . . . . . . . . 300 . Parts Sabotaged . | . . . . . . . . . . . . . . . . . . . Parts Stolen . | . . . . . . . . . . . . . . . . . . . Parts Stripped . | . . . . . . . . . . . . . . . . . . . Power Chain Reactions 1 | . . . . . . 1 . . . . . . . . . . . . Missiles Intercepted . | . . . . . . . . . . . . . . . . . . . Alert | -11 -10 -9 -9 -8 -7 -6 -5 -5 -5 -5 -4 -4 -4 -3 -2 -2 -2 -1 ------- Run | Scr Mat Mat Min Mat Fac Fac Fac Upp Upp Zhi Pro Fac Arm Res Res Tes Sec Acc Peak Influence 1238 | . 155 161 109 98 72 162 223 . . . . 36 599 415 369 429 365 1238 Initial 235 | . . 46 44 . 31 25 58 . . . . 21 12 235 174 155 180 135 Average 142 | . 82 93 30 28 41 78 92 . . . . 21 94 288 248 300 283 407 Maximum Alert Level 4 | . . . . . . . 1 . . . . . 2 2 1 2 1 4 Low Security (%) 76 | 100 100 100 100 100 100 100 95 . . . . 100 83 . 44 30 23 58 Level 1 17 | . . . . . . . 4 . . . . . 10 88 55 48 76 8 Level 2 3 | . . . . . . . . . . . . . 6 11 . 21 . 10 Level 3 . | . . . . . . . . . . . . . . . . . . 7 Level 4 1 | . . . . . . . . . . . . . . . . . . 14 Level 5 . | . . . . . . . . . . . . . . . . . . . High Security . | . . . . . . . . . . . . . . . . . . . Max Security . | . . . . . . . . . . . . . . . . . . . Squads Dispatched 21 | . . 2 . 1 . 1 2 . . . . . 3 . 1 3 4 4 Investigation 2 | . . 1 . . . . . . . . . . . . . . . 1 Extermination . | . . . . . . . . . . . . . . . . . . . Reinforcement 13 | . . 1 . 1 . 1 2 . . . . . 3 . 1 3 1 . Assault 1 | . . . . . . . . . . . . . . . . . . 1 Garrison 2 | . . . . . . . . . . . . . . . . . . 2 Intercept 3 | . . . . . . . . . . . . . . . . . 3 . Construction Impeded . | . . . . . . . . . . . . . . . . . . . Haulers Reinforced . | . . . . . . . . . . . . . . . . . . . Stealth | -11 -10 -9 -9 -8 -7 -6 -5 -5 -5 -5 -4 -4 -4 -3 -2 -2 -2 -1 --------- Run | Scr Mat Mat Min Mat Fac Fac Fac Upp Upp Zhi Pro Fac Arm Res Res Tes Sec Acc Distress Signals 5 | . . 1 . 1 . . . . . . . . 1 1 1 . . . Communications Jammed . | . . . . . . . . . . . . . . . . . . . Distress Signals . | . . . . . . . . . . . . . . . . . . . Times Spotted 245 | . 7 7 2 9 2 3 13 19 9 . 6 8 53 19 13 18 33 24 Peak Tracking Total 30 | . 3 5 2 6 2 4 8 8 8 . 5 9 30 12 9 10 12 14 Tactical Retreats 29 | . . . . 1 . 2 3 4 1 . 1 . 4 2 2 4 3 2 Traps | -11 -10 -9 -9 -8 -7 -6 -5 -5 -5 -5 -4 -4 -4 -3 -2 -2 -2 -1 ------- Run | Scr Mat Mat Min Mat Fac Fac Fac Upp Upp Zhi Pro Fac Arm Res Res Tes Sec Acc Traps Triggered 2 | . 1 . . . . . . . . . . . . 1 . . . . Indirectly . | . . . . . . . . . . . . . . . . . . . Trap Hack Attempts . | . . . . . . . . . . . . . . . . . . . Triggered . | . . . . . . . . . . . . . . . . . . . Disarmed . | . . . . . . . . . . . . . . . . . . . Reprogrammed . | . . . . . . . . . . . . . . . . . . . Reused . | . . . . . . . . . . . . . . . . . . . Traps Extracted . | . . . . . . . . . . . . . . . . . . . Installed . | . . . . . . . . . . . . . . . . . . . Triggered . | . . . . . . . . . . . . . . . . . . . Machines | -11 -10 -9 -9 -8 -7 -6 -5 -5 -5 -5 -4 -4 -4 -3 -2 -2 -2 -1 ---------- Run | Scr Mat Mat Min Mat Fac Fac Fac Upp Upp Zhi Pro Fac Arm Res Res Tes Sec Acc Machines Disabled 13 | . . 2 . . . . . . . . . . 3 . . 1 6 1 Max in Single Turn 2 | . . 2 . . . . . . . . . . 1 . . 1 2 . Energy Cycler 1 | . . . . . . . . . . . . . 1 . . . . . Machines Sabotaged . | . . . . . . . . . . . . . . . . . . . Garrisons Compromised . | . . . . . . . . . . . . . . . . . . . Overloaded Fab Kills . | . . . . . . . . . . . . . . . . . . . Fab Network Shutdowns . | . . . . . . . . . . . . . . . . . . . Hacking | -11 -10 -9 -9 -8 -7 -6 -5 -5 -5 -5 -4 -4 -4 -3 -2 -2 -2 -1 --------- Run | Scr Mat Mat Min Mat Fac Fac Fac Upp Upp Zhi Pro Fac Arm Res Res Tes Sec Acc Machines Accessed 24 | . . 1 1 2 2 1 . . 1 8 . . 3 . . . 4 1 Terminals 14 | . . 1 1 2 2 1 . . . . . . 2 . . . 4 1 Fabricators 1 | . . . . . . . . . . . . . 1 . . . . . Repair Stations . | . . . . . . . . . . . . . . . . . . . Recycling Units . | . . . . . . . . . . . . . . . . . . . Scanalyzers . | . . . . . . . . . . . . . . . . . . . Garrison Access . | . . . . . . . . . . . . . . . . . . . Total Hacks 77 | . . 2 1 7 8 3 . . 1 44 . . 5 . . . 4 2 Successful 63 | . . . 1 4 4 1 . . 1 44 . . 3 . . . 4 1 Failed 14 | . . 2 . 3 4 2 . . . . . . 2 . . . . 1 Catastrophic 5 | . . . . 1 1 1 . . . . . . 1 . . . . 1 Database Lockouts . | . . . . . . . . . . . . . . . . . . . Manual 24 | . . 2 . 7 8 3 . . . . . . 3 . . . 1 . Terminals 30 | . . 2 1 7 8 3 . . . . . . 3 . . . 4 2 Fabricators 2 | . . . . . . . . . . . . . 2 . . . . . Repair Stations . | . . . . . . . . . . . . . . . . . . . Recycling Units . | . . . . . . . . . . . . . . . . . . . Scanalyzers . | . . . . . . . . . . . . . . . . . . . Garrison Access . | . . . . . . . . . . . . . . . . . . . Terminal Hacks 57 | . . . 1 2 2 1 . . 1 44 . . 1 . . . 4 1 Record 35 | . . . . . . . . . . 35 . . . . . . . . Part Schematic 4 | . . . . . . . . . . 4 . . . . . . . . Robot Analysis 1 | . . . . . . . . . . 1 . . . . . . . . Prototype ID Bank 4 | . . . . . . . . . . 4 . . . . . . . . Open Door 6 | . . . . . . . . . 1 . . . 1 . . . 3 1 Level Access Points 3 | . . . . 1 1 1 . . . . . . . . . . . . Branch Access Points 2 | . . . . 1 1 . . . . . . . . . . . . . Zone Layout 1 | . . . 1 . . . . . . . . . . . . . . . Activate Exoskeleton 1 | . . . . . . . . . . . . . . . . . 1 . Fabricator Hacks 2 | . . . . . . . . . . . . . 2 . . . . . Load Schematic 1 | . . . . . . . . . . . . . 1 . . . . . Build 1 | . . . . . . . . . . . . . 1 . . . . . Repair Station Hacks . | . . . . . . . . . . . . . . . . . . . Recycling Unit Hacks . | . . . . . . . . . . . . . . . . . . . Scanalyzer . | . . . . . . . . . . . . . . . . . . . Garrison Access Hacks . | . . . . . . . . . . . . . . . . . . . Unauthorized Hacks 4 | . . . . 2 2 . . . . . . . . . . . . . Terminals 4 | . . . . 2 2 . . . . . . . . . . . . . Botnet 4 | . . . . 2 2 . . . . . . . . . . . . . Fabricators . | . . . . . . . . . . . . . . . . . . . Repair Stations . | . . . . . . . . . . . . . . . . . . . Recycling Units . | . . . . . . . . . . . . . . . . . . . Scanalyzers . | . . . . . . . . . . . . . . . . . . . Garrison Access . | . . . . . . . . . . . . . . . . . . . Data Cores Recovered . | . . . . . . . . . . . . . . . . . . . Used . | . . . . . . . . . . . . . . . . . . . Hacking Detections 12 | . . 1 . 1 2 1 . . . . . . 3 . . . 3 1 Full Trace Events 2 | . . 1 . . . . . . . . . . . . . . . 1 Feedback Events . | . . . . . . . . . . . . . . . . . . . Feedback Blocked . | . . . . . . . . . . . . . . . . . . . Robot Schematics Acquired . | . . . . . . . . . . . . . . . . . . . Robots Built . | . . . . . . . . . . . . . . . . . . . Matter . | . . . . . . . . . . . . . . . . . . . Time . | . . . . . . . . . . . . . . . . . . . Total Robot Build Rating . | . . . . . . . . . . . . . . . . . . . Part Schematics Acquired 4 | . . . . . . . . . . 4 . . . . . . . . Parts Built 1 | . . . . . . . . . . . . . 1 . . . . . Matter 318 | . . . . . . . . . . . . . 318 . . . . . Time 84 | . . . . . . . . . . . . . 84 . . . . . Total Part Build Rating 6 | . . . . . . . . . . . . . 6 . . . . . Parts Repaired . | . . . . . . . . . . . . . . . . . . . Time . | . . . . . . . . . . . . . . . . . . . Parts Recycled . | . . . . . . . . . . . . . . . . . . . Recycled Matter . | . . . . . . . . . . . . . . . . . . . Retrieved Matter . | . . . . . . . . . . . . . . . . . . . Retrieved Components . | . . . . . . . . . . . . . . . . . . . Parts Scanalyzed . | . . . . . . . . . . . . . . . . . . . Part Schematics Acquired . | . . . . . . . . . . . . . . . . . . . Parts Damaged . | . . . . . . . . . . . . . . . . . . . Bothacking | -11 -10 -9 -9 -8 -7 -6 -5 -5 -5 -5 -4 -4 -4 -3 -2 -2 -2 -1 ------------ Run | Scr Mat Mat Min Mat Fac Fac Fac Upp Upp Zhi Pro Fac Arm Res Res Tes Sec Acc Used RIF Installer . | . . . . . . . . . . . . . . . . . . . Robots Hacked . | . . . . . . . . . . . . . . . . . . . Non-combat . | . . . . . . . . . . . . . . . . . . . Combat . | . . . . . . . . . . . . . . . . . . . Robot Hacks Applied . | . . . . . . . . . . . . . . . . . . . Relay Couplers Released . | . . . . . . . . . . . . . . . . . . . Robots Rewired . | . . . . . . . . . . . . . . . . . . . Allies Hacked . | . . . . . . . . . . . . . . . . . . . Hacks Repelled . | . . . . . . . . . . . . . . . . . . . Allies | -11 -10 -9 -9 -8 -7 -6 -5 -5 -5 -5 -4 -4 -4 -3 -2 -2 -2 -1 -------- Run | Scr Mat Mat Min Mat Fac Fac Fac Upp Upp Zhi Pro Fac Arm Res Res Tes Sec Acc Total Allies 3 | . . . . . . . . . . . . . . . . . . 3 Largest Group 3 | . . . . . . . . . . . . . . . . . . 3 Highest-Rated Group 368 | . . . . . . . . . . . . . . . . . . 368 Highest-Rated Ally 131 | . . . . . . . . . . . . . . . . . . 131 Total Orders . | . . . . . . . . . . . . . . . . . . . Ally Attacks 36 | . . . . . . . . . . . . . . . . . . 36 Total Damage 1387 | . . . . . . . . . . . . . . . . . . 1387 Kills 7 | . . . . . . . . . . . . . . . . . . 7 Allies Corrupted . | . . . . . . . . . . . . . . . . . . . Allies Melted . | . . . . . . . . . . . . . . . . . . . Intel | -11 -10 -9 -9 -8 -7 -6 -5 -5 -5 -5 -4 -4 -4 -3 -2 -2 -2 -1 ------- Run | Scr Mat Mat Min Mat Fac Fac Fac Upp Upp Zhi Pro Fac Arm Res Res Tes Sec Acc Robot Analysis Total 1 | . . . . . . . . . . 1 . . . . . . . . Derelict Logs Recovered 6 | . . . 2 . . . . 1 1 . 2 . . . . . . . Drone Launches . | . . . . . . . . . . . . . . . . . . . Drone Recoveries . | . . . . . . . . . . . . . . . . . . . Exploration | -11 -10 -9 -9 -8 -7 -6 -5 -5 -5 -5 -4 -4 -4 -3 -2 -2 -2 -1 ------------- Run | Scr Mat Mat Min Mat Fac Fac Fac Upp Upp Zhi Pro Fac Arm Res Res Tes Sec Acc Turns Passed 3503 | 67 255 166 842 84 153 138 164 184 76 62 63 24 208 160 92 166 297 302 Spaces Moved 6831 | 43 137 74 452 137 385 336 481 521 321 182 314 107 623 700 405 520 796 297 Core 262 | 12 . . . . . . . 13 . . . . . . . . 104 133 Treads . | . . . . . . . . . . . . . . . . . . . Legs 858 | 31 137 74 452 . . . . . . . . . . . . . . 164 Wheels . | . . . . . . . . . . . . . . . . . . . Hover . | . . . . . . . . . . . . . . . . . . . Flight 5711 | . . . . 137 385 336 481 508 321 182 314 107 623 700 405 520 692 . Fastest Speed 14 | 50 120 180 180 25 31 28 19 22 22 20 20 17 17 14 19 19 20 50 Average Speed 40 | 124 143 180 180 31 32 30 19 27 22 21 20 17 17 18 19 22 25 87 Slowest Speed 250 | 200 180 180 180 34 34 31 105 250 22 25 20 17 17 97 19 23 200 120 Overloaded Moves . | . . . . . . . . . . . . . . . . . . . Propulsion Burnouts . | . . . . . . . . . . . . . . . . . . . Robots Hopped 59 | . . . . 7 2 3 4 3 . . . 1 8 11 12 5 3 . Cave-ins Triggered . | . . . . . . . . . . . . . . . . . . . Teleports 3 | . . . . . . . . . . 1 . . . . . . 2 . Exploration Rate (%) 37 | 4 29 16 93 21 14 6 19 69 57 62 56 7 70 26 17 67 71 9 Regions Visited 18 Branch Regions 8 Pre-discovered Areas 3 | . . . . . . . . . . 3 . . . . . . . . Known Exits Taken 18 | 1 1 1 1 1 1 1 1 1 1 1 1 1 1 1 1 1 1 . Unknown Exits Taken . | . . . . . . . . . . . . . . . . . . . Scrap Searched 5 | . . . 1 . . . . 3 . . 1 . . . . . . . Spaces Dug 2 | . . . . . . . . 2 . . . . . . . . . . Terrain Destroyed 42 | . . 13 . . . 5 . 2 . . . . . . . . 1 21 Melee 2 | . . . . . . . . 2 . . . . . . . . . . Projectile 1 | . . . . . . . . . . . . . . . . . 1 . AOE 39 | . . 13 . . . 5 . . . . . . . . . . . 21 Terrain Rammed . | . . . . . . . . . . . . . . . . . . . Walls Destroyed . | . . . . . . . . . . . . . . . . . . . Machines Disabled . | . . . . . . . . . . . . . . . . . . . Actions | -11 -10 -9 -9 -8 -7 -6 -5 -5 -5 -5 -4 -4 -4 -3 -2 -2 -2 -1 --------- Run | Scr Mat Mat Min Mat Fac Fac Fac Upp Upp Zhi Pro Fac Arm Res Res Tes Sec Acc Total 7374 | 56 177 89 466 173 411 358 547 552 325 203 313 110 712 719 408 556 860 339 Wait 232 | . 18 1 . 23 12 6 53 25 1 . . . 84 . 8 . . 1 Move 6697 | 42 136 73 451 122 380 329 472 514 320 181 313 104 608 677 380 509 790 296 Hop 56 | . . . . 7 2 3 4 3 . . . 1 6 11 12 5 2 . Pick Up 82 | 8 8 3 3 3 5 4 4 . . 1 . 2 1 10 1 4 8 17 Fast Attach 42 | . 1 . 2 . 1 2 2 2 2 10 . . 4 5 1 1 9 . Attach 61 | 6 1 1 1 7 4 2 4 . . 1 . 2 . 3 2 4 12 11 Detach 3 | . . . . . . . . . . . . . . . 1 1 1 . Swap 24 | . 1 . 1 2 2 1 2 2 . 1 . 1 1 2 1 3 4 . Drop 82 | . 2 . 1 9 5 3 6 3 2 9 . . 5 11 2 5 11 8 Fire 54 | . 10 11 7 . . 8 . 1 . . . . 1 . . 2 9 5 Melee 15 | . . . . . . . . 2 . . . . 2 . . 3 8 . Ram 1 | . . . . . . . . . . . . . . . . . . 1 Kick . | . . . . . . . . . . . . . . . . . . . Crush . | . . . . . . . . . . . . . . . . . . . Escape Stasis 25 | . . . . . . . . . . . . . . . . 19 6 . Rewire . | . . . . . . . . . . . . . . . . . . . Trap . | . . . . . . . . . . . . . . . . . . . Miscellaneous . | . . . . . . . . . . . . . . . . . . . Route ------- -11/Scrapyard -10/Materials -9/Materials -9/Mines -8/Materials (discovered 3 exits: *Fac x3) -7/Factory (discovered 6 exits: *Fac x4 / Low x2) -6/Factory (discovered 4 exits: *Fac x4) -5/Factory -5/Upper Caves -5/Upper Caves -5/Zhirov -4/Proximity Caves -4/Factory -4/Armory -3/Research -2/Research -2/Testing -2/Section 7 -1/Access (discovered 2 exits: *Sur / Com) To Epsilon Eridani History --------- Turn | Location | Event 17 | -11/Scrapyard | Identified exit to Materials 17 | -11/Scrapyard | Discovered exit to Materials (range 16) 68 | -11/Scrapyard | Entered Materials 68 | -10/Materials | Evolved 1 slot: Power x1 297 | -10/Materials | Identified exit to Materials 297 | -10/Materials | Discovered exit to Materials (range 14) 309 | -10/Materials | Build established: Hacker-Mutant 323 | -10/Materials | Entered another Materials area 323 | -9/Materials | Evolved 2 slots: Propulsion x2 454 | -9/Materials | Identified exit to Mines 454 | -9/Materials | Discovered exit to Mines (range 16) 489 | -9/Materials | Entered Mines 498 | -9/Mines | Met a Derelict bent on vengeance 653 | -9/Mines | Found a damaged Exp. Sensor Array with a note attached 656 | -9/Mines | Found Prototype Device 657 | -9/Mines | Identified Exp. Sensor Array 808 | -9/Mines | Learned Materials terminal intel 833 | -9/Mines | Learned Materials trap positions 914 | -9/Mines | Identified exit to Materials 914 | -9/Mines | Discovered exit to Materials (range 14) 1331 | -9/Mines | Entered Materials 1331 | -8/Materials | Evolved 2 slots: Propulsion x2 1332 | -8/Materials | Loaded intel: 28 trap records 1333 | -8/Materials | Loaded intel: 12 terminal locations 1388 | -8/Materials | Identified exit to Factory 1415 | -8/Materials | Entered Factory 1415 | -7/Factory | Evolved 2 slots: Propulsion x1, Utility x1 1498 | -7/Factory | Identified exit to Factory 1498 | -7/Factory | Identified exit to Lower Caves 1568 | -7/Factory | Entered another Factory area 1568 | -6/Factory | Evolved 2 slots: Propulsion x1, Utility x1 1651 | -6/Factory | Identified exit to Factory 1706 | -6/Factory | Entered another Factory area 1706 | -5/Factory | Evolved 2 slots: Power x1, Utility x1 1861 | -5/Factory | Identified exit to Upper Caves 1861 | -5/Factory | Discovered exit to Upper Caves (range 11) 1870 | -5/Factory | Entered Upper Caves 1887 | -5/Upper Caves | Attracted the attention of an 0b10 outpost 1889 | -5/Upper Caves | Learned Factory trap positions 2053 | -5/Upper Caves | Identified exit to Upper Caves 2053 | -5/Upper Caves | Discovered exit to Upper Caves (range 5) 2054 | -5/Upper Caves | Entered another Upper Caves area 2063 | -5/Upper Caves | Encountered a Warlord checkpoint 2093 | -5/Upper Caves | Learned Factory terminal intel 2120 | -5/Upper Caves | Attracted the attention of an 0b10 checkpoint 2128 | -5/Upper Caves | Identified exit to Zhirov 2128 | -5/Upper Caves | Discovered exit to Zhirov (range 10) 2130 | -5/Upper Caves | Entered Zhirov 2130 | -5/Zhirov | Identified exit to Proximity Caves 2130 | -5/Zhirov | Discovered exit to Proximity Caves (range 3) 2134 | -5/Zhirov | Met Zhirov 2138 | -5/Zhirov | Learned location of Testing (-2) 2138 | -5/Zhirov | Learned location of Command (-1) 2138 | -5/Zhirov | Learned location of Quarantine (-3) 2143 | -5/Zhirov | Zhirov requested help retrieving the SGEMP Prototype 2171 | -5/Zhirov | Found Alien Artifact 2171 | -5/Zhirov | Identified Transdimensional Reconstructor 2171 | -5/Zhirov | Warped through subspace 2178 | -5/Zhirov | Found Alien Artifact 2178 | -5/Zhirov | Identified Integrated Reactor 2178 | -5/Zhirov | Installed Integrated Reactor, increased core energy generation (+10) 2192 | -5/Zhirov | Entered Proximity Caves 2227 | -4/Proximity Caves | Learned 4 Research zone layouts 2251 | -4/Proximity Caves | Attracted the attention of an 0b10 checkpoint 2253 | -4/Proximity Caves | Identified exit to Factory 2253 | -4/Proximity Caves | Discovered exit to Factory (range 13) 2255 | -4/Proximity Caves | Entered Factory 2255 | -4/Factory | Evolved 2 slots: Propulsion x1, Utility x1 2256 | -4/Factory | Identified exit to Armory 2257 | -4/Factory | Loaded intel: 74 trap records 2258 | -4/Factory | Loaded intel: 20 terminal locations 2279 | -4/Factory | Entered Armory 2284 | -4/Armory | Build established: Generator-Sprinter 2286 | -4/Armory | Found Gamma Bomb Array 2384 | -4/Armory | Fabricated Exp. Heat Sink (x1) 2417 | -4/Armory | Spotted B-86 Titan 2421 | -4/Armory | Found Adv. Powered Armor 2430 | -4/Armory | Energy Cycler disabled 2486 | -4/Armory | Identified exit to Research 2486 | -4/Armory | Discovered exit to Research (range 5) 2487 | -4/Armory | Entered Research 2487 | -3/Research | Evolved 2 slots: Propulsion x1, Utility x1 2488 | -3/Research | Identified exit to Research 2640 | -3/Research | Spotted B-86 Titan 2647 | -3/Research | Entered another Research area 2647 | -2/Research | Evolved 2 slots: Utility x1, Weapon x1 2728 | -2/Research | Identified exit to Testing 2728 | -2/Research | Discovered exit to Testing (range 16) 2739 | -2/Research | Entered Testing 2796 | -2/Testing | Spotted Striker 2798 | -2/Testing | Spotted Striker 2801 | -2/Testing | Spotted Alpha 7 2803 | -2/Testing | Scanned by Researcher 2819 | -2/Testing | Stole the SGEMP Prototype 2873 | -2/Testing | Found Prototype Energy Cannon 2883 | -2/Testing | Spotted Fortress 2900 | -2/Testing | Identified exit to Section 7 2900 | -2/Testing | Discovered exit to Section 7 (range 6) 2902 | -2/Testing | Identified Null Cannon 2905 | -2/Testing | Entered Section 7 2938 | -2/Section 7 | Found Alien Artifact 2938 | -2/Section 7 | Identified Integrated Dissipator 2938 | -2/Section 7 | Installed Integrated Dissipator, increased core heat dissipation (+20) 2948 | -2/Section 7 | Found Integrated Reactor 2948 | -2/Section 7 | Installed Integrated Reactor, increased core energy generation (+10) 2962 | -2/Section 7 | Found Integrated Reactor 2962 | -2/Section 7 | Installed Integrated Reactor, increased core energy generation (+10) 2986 | -2/Section 7 | Spotted B-90 Cyclops 2990 | -2/Section 7 | Spotted S7 Guard 2993 | -2/Section 7 | Found Alien Artifact 2993 | -2/Section 7 | Identified Core Membrane 2993 | -2/Section 7 | Installed Core Membrane, gained immunity to corruption 2998 | -2/Section 7 | Spotted Alpha 7 2999 | -2/Section 7 | Spotted Alpha 7 3004 | -2/Section 7 | Spotted B-99 Colossus 3022 | -2/Section 7 | Spotted Executioner 3022 | -2/Section 7 | Spotted Executioner 3027 | -2/Section 7 | Scanned by Researcher 3069 | -2/Section 7 | Found Alien Artifact 3070 | -2/Section 7 | Identified LRC Matter Compressor 3070 | -2/Section 7 | Installed LRC Matter Compressor, increased matter storage capacity (+125) 3072 | -2/Section 7 | Found Alien Artifact 3073 | -2/Section 7 | Lost 6 parts (2n3u1w) 3073 | -2/Section 7 | Identified LRC Energy Well 3073 | -2/Section 7 | Installed LRC Energy Well, increased energy storage capacity (+250) 3101 | -2/Section 7 | Intercept squad dispatched 3106 | -2/Section 7 | Spotted Executioner 3107 | -2/Section 7 | Spotted Executioner 3110 | -2/Section 7 | Spotted Striker 3110 | -2/Section 7 | Spotted Striker 3121 | -2/Section 7 | Lost 6 parts (2p2n1u1w) 3123 | -2/Section 7 | Spotted Tracker 3123 | -2/Section 7 | Spotted Tracker 3124 | -2/Section 7 | Found Alien Artifact 3125 | -2/Section 7 | Identified Matter Drive 3140 | -2/Section 7 | Destroyed Tracker 3157 | -2/Section 7 | Found Transdimensional Reconstructor 3158 | -2/Section 7 | Found Transdimensional Reconstructor 3158 | -2/Section 7 | Warped through subspace 3158 | -2/Section 7 | Spotted Combat Programmer 3159 | -2/Section 7 | Core integrity fell below 50% 3166 | -2/Section 7 | Warped through subspace 3171 | -2/Section 7 | Spotted Combat Programmer 3188 | -2/Section 7 | Lost 9 parts (6n3u) 3189 | -2/Section 7 | Core integrity fell below 20% 3195 | -2/Section 7 | Identified exit to Access 3195 | -2/Section 7 | Discovered exit to Access (range 15) 3202 | -2/Section 7 | Entered Access 3202 | -1/Access | Evolved 2 slots: Utility x2 3203 | -1/Access | Loaded intel: 118 machine locations 3203 | -1/Access | Loaded intel: 75 trap records 3203 | -1/Access | Identified exit to Surface 3203 | -1/Access | Discovered exit to Surface (range 94) 3203 | -1/Access | Identified exit to Command 3203 | -1/Access | Discovered exit to Command (range 82) 3203 | -1/Access | Delivered the SGEMP Prototype to Zhirov 3203 | -1/Access | Zhirov transferred Access data 3373 | -1/Access | Garrison activated, responded to threat 3377 | -1/Access | Garrison activated, responded to threat 3420 | -1/Access | Zhirov warped through subspace 3452 | -1/Access | First assault squad dispatched 3504 | *** | Escaped! Last Messages --------------- 03442_ Dropped Med. Insulated Plating. 03443_ Dropped Imp. Coolant Injector. 03443_ Dropped Lgt. Particle Reactor. 03444_ Penetrated by Slug. 03452_ ALERT: Significant disruption in Zone 1Y, assault force dispatched. 03456_ U-05 Engineer lays Concrete. 03469_ Dropped Adv. Heat Sink. 03470_ Acquired Quantum Reactor. 03482_ Slammed into G-73 Enforcer. 03484_ A-15 Conveyor destroyed. 03484_ K-01 Serf cleans the Terminal. 03484_ Adv. Heat Sink destroyed. 03485_ K-01 Serf collects debris. 03500_ Connecting with Terminal... >>Open Sealed Barrier opened. 03500_ ALERT: Suspicious activity at Terminal A001. Dispatching Investigation squad. 03502_ The Access Shell folds into the floor. [Achievement: Winner's Signature] Map ----- +----------------------------------------------------+ | # ######## ############## | | ############## # ######## ############## | | ################ ######## ############## | | ## # ############## | | ## # ############## | | ## # ############## | | + ############## | | ###+####### # ############## | | # # ############## | | # ###### ####################### | | # ### #################### | | " # ### #################### | | """" # ### #################### | | """"" # ### #################### | | """"" # ### #################### | | """" # ### #################### | | " # ### #################### | | # ###""""""""""#################### | | # ###""""""""""#################### | | # ###""""""""""#################### | | ####+##+### ###""""""""""#################### | | ### ### #################### | | ### ### #################### | | " ### ### #################### | | """ + ### "" ################### | | """ ### ### "@ ################### | | " ### ### ################### | | ### ### ################### | | ### ### ### ######## | | ##+######## ### ### ######## | | ####### ## ## ######## | | "" ###"" ### ######## | | T" ###"" ### ######## | | ####### ###"" ### ######## | | # ######## ###T ### ######## | | # ######## ###"" ### + + | | # ######## ###""s ### ######### | | # ######## ###""s #####+############## | | # ######## s k | | ######## | | !*###########+####################+############## | | #]]##### ################ ######## | | #%]##### ###### # ######## | | #]]##### ###### # ######## | | #= ##### "" "" ###### # "F "" ######## | | # ##### ""T"" ###### # """"" ######## | | " ##### """ ##########+##### """"" ######## | | # ##### ########## ##### ######## | | # ##### ########## ##### ######## | | # ######################## ############+######### | +----------------------------------------------------+ Best States ------------- Heat Dissipation 126 Coolant Potential 80 Energy Generation 102 Energy Capacity 770 Matter Stores 500 Matter Capacity 500 Sight Range 16 Robot Scan Range 30 Terrain Scan Density 10 Cloak Strength 4 Power Amplification 30 Additional Mass Support 9 Armor Coverage 400 Resistance: KI 35 Resistance: TH 35 Resistance: EX 35 Resistance: EM 55 Resistance: I 35 Resistance: S 35 Resistance: P 35 Propulsion Shielding 66 Utility Shielding 66 Evasion (%) 76 Offensive Hacking 20 Item Schematics ----------------- Exp. Heat Sink | -5/Zhirov | Free Exp. Optical Array | -5/Zhirov | Free Imp. Arc Thrower | -5/Zhirov | Free Assault Drone Bay | -5/Zhirov | Free Robot Schematics ------------------ None Fabricated ------------ Exp. Heat Sink | x1 | -4/Armory Alien Tech Used ----------------- Transdimensional Reconstructor Integrated Reactor Integrated Dissipator Core Membrane LRC Matter Compressor LRC Energy Well Matter Drive Achievements -------------- Close Call Just What I Needed Signature Confirmed Special Delivery Winner's Signature root@ Challenges ------------ None Game ------ Seed SmartbombImpulseShockpuncher Manual? 0 Play Time 01:54:46 Cumulative 43.6 hours Start 2022.01.19 @ 08:56:57 End 2022.01.19 @ 11:21:57 Sessions 3 Manual Loads 0 Difficulty Explorer Special Mode None Game No. 43 Rogue 1 Adventurer 0 Explorer 42 Win Type 0 Total 4 Types 4/0/0/0/0/0/0/0/0 Lore% 19 Gallery% 43 Achievement% 33 Wizard Run 0 Options --------- ASCII 0 Keyboard 0 Movement Numpad Keybinds 0 Fullscreen 1 Font 12/Smallcaps Map View 83x54 Tactical HUD 1 Map Filters NONE Filters NONE Steam 1 RUN: 079add72-da01-46f5-ab4d-7543af903a26